fUSD/lending_fUSD_20260318
["ID","MTS","AMOUNT","RATE_DAILY","PERIOD"]
[408533126,1773849032528,-12.63889924,0.00015,2]
[408533128,1773849032537,-200.0,0.00015091,2]
[408533130,1773849032547,-575.39439008,0.00015099,2]
[408533132,1773849032556,-168.8375525,0.00015099,2]
[408533134,1773849032565,-500.0,0.00015099,2]
[408533136,1773849032575,-500.0,0.00015099,2]
[408533138,1773849032584,-321.14350054,0.00015099,2]
[408533140,1773849032594,-16432.50697063,0.000151,2]
[408533157,1773849038009,-200.0,0.00015,2]
[408533158,1773849038019,-11717.82070727,0.000151,2]
[408533159,1773849038031,-6275.55825757,0.000151,2]
[408533160,1773849038145,-690.62,0.000151,2]
[408533161,1773849038156,-1417.12461999,0.000151,2]
[408533162,1773849038167,-837.93999549,0.000151,2]
[408533163,1773849038178,-8350.99785105,0.000151,2]
[408533164,1773849038190,-339.88265974,0.000151,2]
[408533193,1773849040279,-665.0,0.000151,2]
[408533195,1773849040292,-372168.10923826,0.000151,2]
[408533197,1773849040301,-10927.5527,0.000151,2]
[408533199,1773849040312,-700.0,0.000151,5]
[408533201,1773849040321,-9914.29895305,0.000151,2]
[408533203,1773849040332,-1002.33591409,0.00015129,2]
[408533204,1773849040343,-302.0,0.00015133,2]
[408533205,1773849040353,-302.0,0.00015134,2]
[408533206,1773849040362,-420.0,0.00015135,2]
[408533207,1773849040371,-500.0,0.00015154,2]
[408533208,1773849040382,-300.09997911,0.00015194,2]
[408533209,1773849040392,-500.0,0.00015199,2]
[408533210,1773849040405,-500.0,0.00015199,2]
[408533211,1773849040417,-243.29332686,0.00015199,2]
[408533212,1773849040426,-534.7381822,0.00015199,2]
[408533213,1773849040436,-209.75629678,0.00015199,2]
[408533214,1773849040445,-151.0,0.00015199,2]
[408533215,1773849040455,-500.0,0.00015199,2]
[408533216,1773849040465,-500.0,0.00015199,2]
[408533217,1773849040475,-500.0,0.00015199,2]
[408533218,1773849040483,-500.0,0.00015199,2]
[408533219,1773849040492,-500.0,0.00015199,2]
[408533220,1773849040502,-500.0,0.00015199,2]
[408533221,1773849040511,-500.0,0.00015199,2]
[408533222,1773849040521,-500.0,0.00015199,2]
[408533223,1773849040530,-500.0,0.00015199,2]
[408533224,1773849040541,-500.0,0.00015199,2]
[408533225,1773849040550,-500.0,0.00015199,2]
[408533226,1773849040560,-500.0,0.00015199,2]
[408533227,1773849040569,-583.36890574,0.00015199,2]
[408533228,1773849040578,-500.0,0.00015199,2]
[408533229,1773849040589,-500.0,0.00015199,2]
[408533230,1773849040599,-500.0,0.00015199,2]
[408533231,1773849040612,-500.0,0.00015199,2]
[408533232,1773849040622,-500.0,0.00015199,2]
[408533233,1773849040631,-500.0,0.00015199,2]
[408533234,1773849040641,-500.0,0.00015199,2]
[408533235,1773849040650,-250.0,0.00015199,2]
[408533236,1773849040659,-500.0,0.00015199,2]
[408533237,1773849040670,-500.0,0.00015199,2]
[408533238,1773849040679,-250.0,0.00015199,2]
[408533239,1773849040687,-301.07682067,0.00015199,2]
[408533240,1773849040697,-500.0,0.00015199,2]
[408533241,1773849040706,-250.0,0.00015199,2]
[408533242,1773849040715,-500.0,0.00015199,2]
[408533243,1773849040724,-250.0,0.00015199,2]
[408533244,1773849040733,-500.0,0.00015199,2]
[408533245,1773849040742,-250.0,0.00015199,2]
[408533246,1773849040752,-500.0,0.00015199,2]
[408533247,1773849040761,-250.0,0.00015199,2]
[408533248,1773849040771,-500.0,0.00015199,2]
[408533249,1773849040780,-250.0,0.00015199,2]
[408533250,1773849040790,-250.0,0.00015199,2]
[408533251,1773849040800,-500.0,0.00015199,2]
[408533252,1773849040812,-248.1,0.00015199,2]
[408533253,1773849040821,-500.0,0.00015199,2]
[408533254,1773849040831,-669.13395939,0.00015199,2]
[408533255,1773849040841,-273122.2539,0.000152,2]
[408533256,1773849040850,-1100.0,0.000152,5]
[408533257,1773849040860,-9914.29895305,0.000152,2]
[408533258,1773849040869,-1015.14138384,0.00015221,2]
[408533259,1773849040879,-300.0,0.00015221,2]
[408533260,1773849040889,-256.21511094,0.00015221,2]
[408533261,1773849040898,-500.0,0.00015254,2]
[408533262,1773849040908,-20361.65273967,0.00015256,2]
[408533263,1773849040918,-1002.33591409,0.00015257,2]
[408533264,1773849040927,-1500.0,0.000153,5]
[408533265,1773849040936,-9914.29895305,0.000153,2]
[408533266,1773849040945,-879.0,0.00015331,2]
[408533267,1773849040955,-225.0,0.00015363,2]
[408533268,1773849040964,-1002.33591409,0.00015386,2]
[408533270,1773849040974,-1900.0,0.000154,5]
[408533271,1773849040983,-9914.29895305,0.000154,2]
[408533272,1773849040993,-500.0,0.00015428,2]
[408533273,1773849041003,-9771.5877164,0.000155,3]
[408533274,1773849041015,-300.0,0.000155,5]
[408533275,1773849041024,-9914.29895305,0.000155,2]
[408533276,1773849041033,-1002.33591409,0.00015514,2]
[408533277,1773849041043,-879.0,0.00015546,2]
[408533278,1773849041055,-1600.0,0.00015567,2]
[408533279,1773849041064,-5253.31447017,0.00015568,2]
[408533280,1773849041073,-689.0,0.00015579,2]
[408533281,1773849041083,-444.703385,0.00015582,7]
[408533282,1773849041093,-428.840459,0.00015582,7]
[408533283,1773849041102,-242.457028,0.00015582,7]
[408533284,1773849041111,-165.102415,0.00015582,7]
[408533285,1773849041121,-279.160697,0.00015582,7]
[408533286,1773849041130,-500.0,0.00015599,2]
[408533287,1773849041140,-500.0,0.00015599,2]
[408533288,1773849041149,-500.0,0.00015599,2]
[408533289,1773849041159,-500.0,0.00015599,2]
[408533290,1773849041169,-515.52448038,0.00015599,2]
[408533291,1773849041178,-500.0,0.00015599,2]
[408533292,1773849041188,-300.0,0.000156,5]
[408533293,1773849041198,-9914.29895305,0.000156,2]
[408533294,1773849041207,-689.0,0.00015625,2]
[408533295,1773849041216,-154.10725798,0.00015635,2]
[408533296,1773849041226,-341.11224002,0.00015639,2]
[408533297,1773849041235,-1002.33591409,0.00015643,2]
[408533298,1773849041244,-5253.31447017,0.00015651,2]
[408533299,1773849041254,-689.0,0.00015667,2]
[408533300,1773849041263,-435.35742922,0.00015692,2]
[408533301,1773849041274,-500.0,0.00015698,2]
[408533302,1773849041283,-500.0,0.00015698,2]
[408533303,1773849041293,-689.0,0.00015698,2]
[408533304,1773849041302,-836.54,0.00015698,2]
[408533305,1773849041312,-300.0,0.000157,5]
[408533306,1773849041321,-9914.29895305,0.000157,2]
[408533307,1773849041330,-879.0,0.000157,2]
[408533308,1773849041343,-500.0,0.00015702,2]
[408533309,1773849041352,-689.0,0.00015732,2]
[408533310,1773849041362,-5253.31447017,0.00015734,2]
[408533311,1773849041371,-689.0,0.00015766,2]
[408533312,1773849041381,-1002.33591409,0.00015771,2]
[408533313,1773849041391,-500.0,0.00015798,2]
[408533314,1773849041409,-500.0,0.00015799,2]
[408533315,1773849041422,-500.0,0.00015799,2]
[408533316,1773849041432,-300.0,0.000158,5]
[408533317,1773849041442,-9914.29895305,0.000158,2]
[408533318,1773849041451,-5253.31447017,0.00015817,2]
[408533319,1773849041461,-274.78705,0.0001584,2]
[408533320,1773849041470,-274.78706,0.0001584,2]
[408533321,1773849041480,-274.78705,0.0001585,2]
[408533322,1773849041490,-689.0,0.00015854,2]
[408533323,1773849041500,-200.0,0.00015872,2]
[408533324,1773849041510,-8741.4341,0.000159,2]
[408533325,1773849041520,-1000.0,0.000159,2]
[408533326,1773849041530,-714.21757068,0.000159,2]
[408533327,1773849041540,-2602.2215,0.000159,2]
[408533328,1773849041550,-5253.31447017,0.000159,2]
[408533329,1773849041560,-5000.0,0.000159,2]
[408533330,1773849041570,-321.6339966,0.000159,2]
[408533331,1773849041580,-932.0,0.000159,5]
[408533332,1773849041591,-9914.29895305,0.000159,2]
[408533333,1773849041601,-1002.33591409,0.000159,2]
[408533334,1773849041611,-1736.0,0.000159,5]
[408533335,1773849041632,-50000.0,0.000159,3]
[408533336,1773849041649,-1063.00007701,0.00015903,2]
[408533337,1773849041664,-3855.13087091,0.00015956,2]
[408533338,1773849041677,-625.10809467,0.00015963,2]
[408533339,1773849041691,-500.0,0.00015973,2]
[408533340,1773849041704,-500.0,0.00015973,2]
[408533341,1773849041724,-500.0,0.00015973,2]
[408533342,1773849041739,-159.91505138,0.00015973,2]
[408533343,1773849041752,-500.0,0.00015973,2]
[408533344,1773849041765,-160.10375546,0.00015973,2]
[408533345,1773849041780,-160.12424924,0.00015973,2]
[408533346,1773849041794,-160.11975848,0.00015973,2]
[408533347,1773849041806,-160.92724101,0.00015973,2]
[408533348,1773849041817,-160.12352153,0.00015973,2]
[408533349,1773849041829,-500.0,0.00015973,2]
[408533350,1773849041843,-500.0,0.00015973,2]
[408533351,1773849041856,-500.0,0.00015973,2]
[408533352,1773849041869,-500.0,0.00015973,2]
[408533353,1773849041883,-500.0,0.00015973,2]
[408533354,1773849041896,-160.12427518,0.00015973,2]
[408533355,1773849041909,-500.0,0.00015973,2]
[408533356,1773849041923,-501.27392354,0.00015973,2]
[408533357,1773849041941,-500.0,0.00015973,2]
[408533358,1773849041955,-500.0,0.00015973,2]
[408533359,1773849041969,-763.26,0.00015973,2]
[408533360,1773849041981,-500.0,0.00015976,2]
[408533361,1773849041994,-2683.1,0.00015987,2]
[408533362,1773849042008,-193.46164171,0.0001599,2]
[408533363,1773849042020,-193.46164171,0.0001599,2]
[408533364,1773849042033,-1000.0,0.00015999,2]
[408533365,1773849042047,-2335.675,0.00015999,2]
[408533366,1773849042064,-172.462,0.00015999,2]
[408533367,1773849042082,-500.0,0.00015999,2]
[408533368,1773849042098,-500.0,0.00015999,2]
[408533369,1773849042113,-186.16,0.00015999,2]
[408533370,1773849042127,-1713.0,0.00016,5]
[408533371,1773849042138,-1346530.71524525,0.00016,2]
[408533372,1773849042224,-1478.519825,0.00016,2]
[408533377,1773849042984,-550.010674,0.00016,2]
[408533379,1773849043293,-1428.82,0.00016,2]
[408533393,1773849045870,-1142.41073856,0.00016,2]
[408533415,1773849046169,-11453.9594,0.00016,2]
[408533435,1773849546137,999.811176,0.0003,120]
[408533436,1773849573243,999.811176,0.0003,120]
[408533437,1773849587628,999.811176,0.0003,120]
[408533438,1773849595574,999.811176,0.0003,120]
[408533439,1773849602611,999.811176,0.0003,120]
[408533440,1773849610263,999.811176,0.0003,120]
[408533441,1773849855336,151.48,0.00030137,120]
[408533443,1773850172487,945.01750694,0.00011698,2]
[408533444,1773850232044,-164.68,0.00011712,2]
[408533448,1773850232054,-250.0,0.00011712,2]
[408533452,1773850232064,-5631.00951283,0.00011712,2]
[408533455,1773850232074,-166.49782903,0.00012784,2]
[408533458,1773850232083,-1200.0,0.00012882,2]
[408533459,1773850232092,-912.51,0.00012884,2]
[408533460,1773850232102,-250.0,0.00012884,2]
[408533461,1773850232111,-189.31,0.00013911,2]
[408533462,1773850232122,-1680.0,0.0001417,2]
[408533463,1773850232132,-1620.25,0.00014554,2]
[408533464,1773850232142,-166.6,0.0001464,2]
[408533465,1773850232151,-3240.0,0.0001464,2]
[408533466,1773850232160,-2000.0,0.00014657,2]
[408533467,1773850232169,-200.0,0.00014961,2]
[408533468,1773850232178,-3277.2873,0.00015,2]
[408533469,1773850232187,-1000.0,0.00015,2]
[408533470,1773850232197,-900.0,0.00015,5]
[408533471,1773850232206,-161.61,0.00015077,2]
[408533472,1773850232216,-443.07294302,0.00015099,2]
[408533473,1773850232227,-1800.0,0.000151,5]
[408533474,1773850232237,-2276.05797292,0.00015184,2]
[408533475,1773850232246,-168.0,0.00015185,2]
[408533476,1773850232255,-300.0,0.00015198,2]
[408533477,1773850232264,-500.0,0.00015199,2]
[408533478,1773850232273,-500.0,0.00015199,2]
[408533479,1773850232282,-500.0,0.00015199,2]
[408533480,1773850232291,-500.0,0.00015199,2]
[408533481,1773850232300,-500.0,0.00015199,2]
[408533482,1773850232310,-500.0,0.00015199,2]
[408533483,1773850232319,-500.0,0.00015199,2]
[408533484,1773850232328,-250.0,0.00015199,2]
[408533485,1773850232337,-500.0,0.00015199,2]
[408533486,1773850232347,-250.0,0.00015199,2]
[408533487,1773850232356,-174.61919141,0.00015199,2]
[408533488,1773850232365,-500.0,0.00015199,2]
[408533489,1773850232374,-250.0,0.00015199,2]
[408533491,1773850232383,-250.0,0.00015199,2]
[408533493,1773850232392,-500.0,0.00015199,2]
[408533495,1773850232402,-250.0,0.00015199,2]
[408533496,1773850232411,-500.0,0.00015199,2]
[408533497,1773850232420,-250.0,0.00015199,2]
[408533498,1773850232430,-250.0,0.00015199,2]
[408533499,1773850232439,-500.0,0.00015199,2]
[408533500,1773850232450,-250.0,0.00015199,2]
[408533501,1773850232459,-200.0,0.00015199,2]
[408533502,1773850232470,-500.0,0.00015199,2]
[408533503,1773850232480,-250.0,0.00015199,2]
[408533504,1773850232489,-500.0,0.00015199,2]
[408533505,1773850232499,-250.0,0.00015199,2]
[408533506,1773850232508,-500.0,0.00015199,2]
[408533507,1773850232518,-250.0,0.00015199,2]
[408533508,1773850232528,-250.0,0.00015199,2]
[408533509,1773850232538,-250.0,0.00015199,2]
[408533510,1773850232547,-250.0,0.00015199,2]
[408533511,1773850232558,-151.0,0.00015199,2]
[408533512,1773850232567,-250.0,0.00015199,2]
[408533513,1773850232577,-151.0,0.00015199,2]
[408533514,1773850232588,-250.0,0.00015199,2]
[408533515,1773850232597,-197.81637649,0.00015199,2]
[408533516,1773850232608,-151.0,0.00015199,2]
[408533517,1773850232619,-250.0,0.00015199,2]
[408533518,1773850232629,-250.0,0.00015199,2]
[408533519,1773850232639,-250.0,0.00015199,2]
[408533520,1773850232649,-250.0,0.00015199,2]
[408533521,1773850232659,-250.0,0.00015199,2]
[408533522,1773850232668,-250.0,0.00015199,2]
[408533523,1773850232677,-250.0,0.00015199,2]
[408533524,1773850232691,-250.0,0.00015199,2]
[408533525,1773850232701,-250.0,0.00015199,2]
[408533526,1773850232711,-250.0,0.00015199,2]
[408533527,1773850232722,-250.0,0.00015199,2]
[408533528,1773850232733,-250.0,0.00015199,2]
[408533529,1773850232743,-250.0,0.00015199,2]
[408533530,1773850232752,-334.73758888,0.00015199,2]
[408533531,1773850232762,-500.0,0.00015199,2]
[408533532,1773850232771,-7072.49302969,0.000152,2]
[408533533,1773850232781,-492.69500439,0.000152,2]
[408533534,1773850232794,-586.36501892,0.000152,2]
[408533535,1773850232823,-1908.35937472,0.000152,2]
[408533536,1773850232836,-2012.58060197,0.000152,2]
[408533537,1773850232846,-5000.0,0.000152,2]
[408533538,1773850232857,-5000.0,0.000152,2]
[408533539,1773850232866,-2906.65419192,0.000152,2]
[408533540,1773850232876,-2700.0,0.000152,5]
[408533541,1773850232886,-151.0,0.00015254,2]
[408533542,1773850232895,-3600.0,0.000153,5]
[408533543,1773850232907,-151.0,0.00015309,2]
[408533544,1773850232916,-214.0,0.00015363,2]
[408533545,1773850232925,-168.0,0.00015397,2]
[408533546,1773850232935,-4600.0,0.000154,5]
[408533547,1773850232944,-168.0,0.00015474,2]
[408533548,1773850232955,-900.0,0.000155,5]
[408533549,1773850232966,-1942.14,0.00015507,2]
[408533550,1773850232976,-150.0,0.00015582,2]
[408533551,1773850232985,-150.0,0.00015582,2]
[408533552,1773850232995,-200.0,0.00015582,2]
[408533553,1773850233006,-900.0,0.000156,5]
[408533554,1773850233015,-236.7839088,0.00015616,2]
[408533555,1773850233026,-166.6,0.00015686,2]
[408533556,1773850233035,-161.61,0.00015699,2]
[408533557,1773850233044,-900.0,0.000157,5]
[408533558,1773850233055,-2437.5719377,0.000157,2]
[408533559,1773850233064,-174.61919141,0.00015747,2]
[408533560,1773850233074,-200.0,0.00015747,2]
[408533561,1773850233083,-238.208015,0.00015794,7]
[408533562,1773850233093,-458.206854,0.00015794,7]
[408533563,1773850233105,-165.218645,0.00015794,7]
[408533564,1773850233114,-900.0,0.000158,5]
[408533565,1773850233125,-2500.0,0.000158,2]
[408533566,1773850233137,-4707.16733201,0.000158,2]
[408533567,1773850233148,-2000.0,0.000158,2]
[408533568,1773850233158,-4707.16733201,0.00015811,2]
[408533569,1773850233167,-4707.16733201,0.00015822,2]
[408533570,1773850233182,-441.4798746,0.00015823,2]
[408533571,1773850233192,-472.15,0.00015823,2]
[408533572,1773850233201,-4707.16733201,0.00015833,2]
[408533573,1773850233214,-168.0,0.00015835,2]
[408533574,1773850233225,-274.78705,0.0001584,2]
[408533575,1773850233240,-274.78706,0.0001584,2]
[408533576,1773850233250,-4707.16733201,0.00015844,2]
[408533577,1773850233262,-274.78705,0.0001585,2]
[408533578,1773850233271,-842.88433893,0.00015856,2]
[408533579,1773850233284,-4707.16733201,0.00015856,2]
[408533580,1773850233294,-842.88433893,0.00015867,2]
[408533581,1773850233309,-4707.16733201,0.00015867,2]
[408533582,1773850233320,-842.88433893,0.00015878,2]
[408533583,1773850233335,-4707.16733201,0.00015878,2]
[408533584,1773850233344,-842.88433893,0.00015889,2]
[408533585,1773850233357,-4707.16733201,0.00015889,2]
[408533586,1773850233368,-2000.0,0.0001589,2]
[408533587,1773850233384,-500.0,0.0001589,2]
[408533588,1773850233394,-500.0,0.0001589,2]
[408533589,1773850233408,-500.0,0.0001589,2]
[408533590,1773850233421,-500.0,0.0001589,2]
[408533591,1773850233438,-500.0,0.0001589,2]
[408533592,1773850233454,-500.0,0.0001589,2]
[408533593,1773850233467,-500.0,0.0001589,2]
[408533594,1773850233494,-500.0,0.0001589,2]
[408533595,1773850233506,-500.0,0.0001589,2]
[408533596,1773850233520,-500.0,0.0001589,2]
[408533597,1773850233532,-500.0,0.0001589,2]
[408533598,1773850233542,-500.0,0.0001589,2]
[408533599,1773850233567,-500.0,0.0001589,2]
[408533600,1773850233584,-1942.14,0.00015895,2]
[408533601,1773850233601,-1868.54,0.00015897,2]
[408533602,1773850233613,-172.462,0.00015897,2]
[408533603,1773850233625,-1061.87895583,0.000159,2]
[408533604,1773850233638,-2393.37321655,0.000159,2]
[408533605,1773850233650,-2629.51781215,0.000159,2]
[408533606,1773850233661,-92059.30043827,0.000159,2]
[408533607,1773850233674,-73926.68800157,0.000159,2]
[408533608,1773850233693,-41049.02346473,0.000159,2]
[408533609,1773850233705,-3001.10999998,0.000159,2]
[408533610,1773850233716,-6817.24270265,0.000159,2]
[408533611,1773850233728,-721.974115,0.000159,2]
[408533612,1773850233741,-2254.55897025,0.000159,2]
[408533621,1773850239330,-1370.73108419,0.000159,2]
[408533622,1773850239351,-730.12557345,0.000159,2]
[408533623,1773850239368,-4233.65454729,0.000159,2]
[408533681,1773850240334,-2512.3783548,0.000159,2]
[408533741,1773850240906,-498.77821201,0.000159,2]
[408533751,1773850243318,-13708.21473581,0.000159,2]
[408533752,1773850243328,-842.88433893,0.000159,2]
[408533753,1773850243337,-1200.0,0.000159,5]
[408533754,1773850243347,-5000.0,0.000159,2]
[408533755,1773850243356,-4707.16733201,0.000159,2]
[408533756,1773850243365,-2000.0,0.000159,2]
[408533757,1773850243375,-520.37682739,0.000159,2]
[408533758,1773850243388,-350.0,0.0001592,2]
[408533759,1773850243399,-329.0,0.00015945,2]
[408533760,1773850243408,-160.0,0.00015962,2]
[408533761,1773850243419,-979.16666667,0.00015962,2]
[408533762,1773850243429,-9133.0,0.00015973,2]
[408533763,1773850243439,-500.0,0.00015973,2]
[408533764,1773850243449,-500.0,0.00015973,2]
[408533765,1773850243459,-500.0,0.00015973,2]
[408533766,1773850243469,-388.170648,0.00015973,2]
[408533767,1773850243482,-113.17350965,0.00015973,2]
[408533768,1773850243491,-448.24083087,0.00015973,2]
[408533769,1773850243501,-77.72415064,0.00015973,2]
[408533770,1773850243513,-114.12831155,0.00015973,2]
[408533771,1773850243523,-500.0,0.00015973,2]
[408533772,1773850243533,-500.0,0.00015973,2]
[408533773,1773850243543,-500.0,0.00015973,2]
[408533774,1773850243553,-500.0,0.00015973,2]
[408533775,1773850243563,-500.0,0.00015973,2]
[408533776,1773850243572,-388.60866893,0.00015973,2]
[408533777,1773850243582,-500.0,0.00015973,2]
[408533778,1773850243594,-700.0,0.00015985,2]
[408533779,1773850243604,-500.0,0.00015987,2]
[408533780,1773850243614,-4882.2891464,0.00015994,2]
[408533781,1773850243623,-1837.47406824,0.00015994,2]
[408533782,1773850243646,-2818.88970174,0.00015994,2]
[408533783,1773850243658,-1341.1881396,0.00015994,2]
[408533784,1773850243669,-1012.19947126,0.00015994,2]
[408533790,1773850246052,-436.74,0.00015994,2]
[408533791,1773850246184,-3277.65,0.00015994,2]
[408533792,1773850246195,-2181.99999996,0.00015994,2]
[408533800,1773850782514,1000.0,0.0003013,120]
[408533801,1773851148776,999.811176,0.0003,120]
[408533802,1773851157528,999.811176,0.0003,120]
[408533803,1773851164840,999.811176,0.0003,120]
[408533804,1773851172101,999.811176,0.0003,120]
[408533805,1773851181308,999.811176,0.0003,120]
[408533806,1773851183183,6729.02263416,8e-05,2]
[408533807,1773851189346,999.811176,0.0003,120]
[408533808,1773851197426,999.811176,0.0003,120]
[408533809,1773851204334,999.811176,0.0003,120]
[408533810,1773851212049,999.811176,0.0003,120]
[408533811,1773851221244,999.811176,0.0003,120]
[408533812,1773851228735,999.811176,0.0003,120]
[408533813,1773851235198,999.811176,0.0003,120]
[408533814,1773851242536,999.811176,0.0003,120]
[408533815,1773851249774,999.811172,0.0003,120]
[408533816,1773851339227,10000.01,9.5e-05,3]
[408533817,1773851339255,743.06902043,9.5e-05,3]
[408533818,1773851339285,3824.53009978,9.5e-05,3]
[408533819,1773851368159,-313.3,0.00013699,2]
[408533820,1773851368191,-500.0,0.00013866,2]
[408533821,1773851368216,-300.0,0.00013989,2]
[408533822,1773851368239,-4431.00412769,0.0001399,2]
[408533823,1773851430470,322.48854787,0.0003,120]
[408533839,1773851432743,-300.0,0.00013989,2]
[408533841,1773851432752,-258.27538772,0.0001399,2]
[408533842,1773851432764,-341.72461228,0.0001399,2]
[408533843,1773851432774,-837.85321673,0.0001399,2]
[408533844,1773851432785,-312.7,0.0001399,2]
[408533845,1773851432805,-8942.96509326,0.0001399,2]
[408533846,1773851432814,-1019.86,0.00014048,2]
[408533847,1773851432824,-150.0,0.0001437,2]
[408533848,1773851432835,-334.61,0.00014437,2]
[408533849,1773851432845,-772.85,0.00014554,2]
[408533850,1773851432855,-150.0,0.00014554,2]
[408533851,1773851432865,-7233.74,0.00014554,2]
[408533852,1773851432874,-1852.42,0.00014694,2]
[408533853,1773851432885,-481.14,0.00014694,2]
[408533854,1773851432896,-150.0,0.00014899,2]
[408533855,1773851432907,-12762.1198,0.000149,2]
[408533856,1773851432918,-9999.99,0.000149,2]
[408533857,1773851432927,-151.45,0.00014949,2]
[408533858,1773851432938,-428.41762254,0.00014956,2]
[408533859,1773851432948,-3611.20602684,0.00014961,2]
[408533860,1773851432958,-29370.45,0.0001499,2]
[408533861,1773851432967,-268.67,0.0001499,2]
[408533862,1773851432977,-268.67,0.0001499,2]
[408533863,1773851432987,-151.0,0.00014997,2]
[408533864,1773851432997,-500.0,0.00014999,2]
[408533865,1773851433006,-61763.22912308,0.00015,2]
[408533866,1773851433018,-1254.41808677,0.00015,2]
[408533867,1773851433036,-6138.23836501,0.00015,2]
[408533874,1773851438315,-161.04,0.00014155,2]
[408533878,1773851438325,-1969.64846202,0.00015,2]
[408533879,1773851438454,-14174.9,0.00015,2]
[408533880,1773851438466,-832.77319048,0.00015,2]
[408533881,1773851438477,-1456.6380125,0.00015,2]
[408533889,1773851440587,-399.31230441,0.00015,2]
[408533890,1773851440686,-385.89601083,0.00015,2]
[408533891,1773851440698,-1123.17140175,0.00015,2]
[408533892,1773851440709,-1413.47813135,0.00015,2]
[408533893,1773851440720,-383.45408857,0.00015,2]
[408533894,1773851441250,-3558.15,0.00015,2]
[408533953,1773851443459,-2011.21213298,0.00015,2]
[408533954,1773851443548,-524.0,0.00015,2]
[408533955,1773851443622,-73150.0,0.00015,2]
[408533956,1773851443635,-1013.90818095,0.00015,2]
[408533957,1773851443646,-1423.6,0.00015,2]
[408533961,1773851446271,-10349.27104002,0.00015,2]
[408533962,1773851446332,-623.48196777,0.00015,2]
[408533963,1773851446344,-1140.2498,0.00015,2]
[408533964,1773851446628,-1500.0,0.00015,2]
[408533973,1773851482386,506.14,0.00030137,120]
[408533974,1773851498281,1000.0,0.00030137,120]
[408533975,1773851888209,500.0,0.00030137,120]
[408533976,1773852047216,250.0,0.0003,120]
[408533979,1773852340488,5015.355,0.0003,120]
[408533980,1773852590883,1902.27554056,0.00030136,120]
[408533982,1773852631412,-1105.03,0.00011996,2]
[408533983,1773852631425,-456.0,0.00012743,2]
[408533984,1773852631434,-300.0,0.00013194,2]
[408533985,1773852631443,-431.0,0.00013194,2]
[408533986,1773852631452,-5000.0,0.00013195,2]
[408533987,1773852631462,-250.0,0.00013195,2]
[408533988,1773852631470,-166.66,0.00013449,2]
[408533989,1773852631479,-200.0,0.00013545,2]
[408533990,1773852631491,-3240.0,0.00013656,2]
[408533991,1773852631500,-2000.0,0.00013692,2]
[408533992,1773852631510,-166.66,0.00013732,2]
[408533993,1773852631519,-500.0,0.0001383,2]
[408533994,1773852631528,-630.0,0.00013918,2]
[408533995,1773852631538,-1314.12,0.00013937,2]
[408533996,1773852631547,-166.66,0.00014015,2]
[408533997,1773852631556,-166.8,0.00014123,2]
[408533998,1773852631565,-166.66,0.00014299,2]
[408534000,1773852631575,-420.0,0.00014467,2]
[408534001,1773852631584,-168.0,0.00014545,2]
[408534003,1773852631593,-200.0,0.0001456,2]
[408534005,1773852631602,-166.66,0.00014582,2]
[408534007,1773852631611,-203.0,0.00014595,2]